bitfinex-derivatives/quotes_SOLF0:USTF0_20250821
["timestamp","ask_amount","ask_price","bid_price","bid_amount"]
[1755744957320,141.19998641,186.61,186.57,2.83]
[1755744957517,132.18,186.6,186.57,2.83]
[1755744958417,132.02,186.59,186.57,2.83]
[1755744959016,132.18,186.59,186.57,2.83]
[1755744959217,132.18,186.59,186.56,5.3595]
[1755744959617,132.18,186.59,186.56,8.1895]
[1755744960222,132.02,186.58,186.57,8.1891]
[1755744960423,141.35998641,186.61,186.57,8.1891]
[1755744960623,132.18,186.6,186.57,8.1891]
[1755744961512,132.02,186.6,186.57,2.83]
[1755744961717,0.16,186.59,186.56,5.3595]
[1755744961921,0.16,186.59,186.56,8.1895]
[1755744963931,0.16,186.58,186.55,5.39391625]
[1755744964128,132.18,186.6,186.56,2.83]
[1755744964731,0.16,186.59,186.56,2.83]
[1755744964926,0.16,186.58,186.55,0.03411625]
[1755744965226,0.16,186.58,186.55,2.86411625]
[1755744965424,132.02,186.6,186.56,2.83]
[1755744965425,132.18,186.6,186.56,2.83]
[1755744965625,0.16,186.59,186.56,2.83]
[1755744967932,131.98,186.58,186.57,2.83]
[1755744971636,141.19998641,186.61,186.57,2.83]
[1755744971840,131.96,186.6,186.57,2.83]
[1755744972237,131.96,186.6,186.58,2.83]
[1755744972740,132.12,186.6,186.58,2.83]
[1755744976931,131.96,186.6,186.58,2.83]
[1755744977137,132.12,186.6,186.57,5.3592]
[1755744977444,131.96,186.6,186.58,2.83]
[1755744977743,132.12,186.6,186.58,2.83]
[1755744978044,132.1,186.61,186.59,2.83]
[1755744978341,132.1,186.61,186.55,4.54155455]
[1755744978342,131.94,186.61,186.57,4.30458023]
[1755744978537,0.16,186.59,186.57,4.30458023]
[1755744978737,131.94,186.61,186.57,4.30458023]
[1755744979036,132.1,186.61,186.58,2.83]
[1755744979441,0.16,186.6,186.57,1.47458023]
[1755744979641,0.16,186.6,186.57,4.30458023]
[1755744980342,0.16,186.6,186.58,2.83]
[1755744981336,0.16,186.6,186.56,1.47458023]
[1755744981541,0.16,186.6,186.57,2.83]
[1755744981843,1.47458023,186.6,186.55,0.03411625]
[1755744982143,0.16,186.57,186.55,0.03411625]
[1755744982445,1.63458023,186.58,186.55,2.86411625]
[1755744982648,131.94,186.61,186.55,0.03411625]
[1755744982842,1.47458023,186.59,186.56,2.83]
[1755744983039,1.63458023,186.59,186.56,2.83]
[1755744983846,0.15,186.58,186.56,2.83]
[1755744984842,1.47458023,186.59,186.56,2.83]
[1755744985048,1.62458023,186.59,186.56,2.83]
[1755744985547,0.15,186.59,186.56,2.83]
[1755744985746,1.62458023,186.57,186.55,0.03411625]
[1755744985946,0.16,186.56,186.55,0.03411625]
[1755744986448,1.63458023,186.57,186.55,0.03411625]
[1755744990652,1.47458023,186.63,186.56,2.81]
[1755744990847,133.53458023,186.63,186.59,2.81]
[1755744991247,0.16,186.62,186.59,2.81]
[1755744991750,0.16,186.62,186.59,2.84953202]
[1755744992654,131.9,186.64,186.6,2.81]
[1755744992954,0.16,186.63,186.6,2.81]
[1755744993153,131.9,186.64,186.6,2.81]
[1755744993346,0.16,186.62,186.59,0.03953202]
[1755744993756,0.16,186.6,186.59,0.03953202]
[1755744997755,2.30366905,186.61,186.59,0.03953202]
[1755744997958,0.16,186.6,186.59,0.03953202]
[1755745003062,2.30366905,186.61,186.59,0.03953202]
[1755745003264,0.16,186.6,186.59,0.03953202]
[1755745010668,2.30366905,186.63,186.59,0.03953202]
[1755745010880,131.82,186.62,186.61,2.81]
[1755745012975,131.82,186.62,186.59,0.03953202]
[1755745013175,131.82,186.62,186.59,2.84953202]
[1755745013375,131.98,186.62,186.59,2.84953202]
[1755745014066,131.98,186.62,186.6,2.81]
[1755745014272,131.82,186.62,186.6,2.81]
[1755745017572,131.97,186.62,186.6,2.81]
[1755745018676,131.97,186.62,186.59,2.90953202]
[1755745018878,131.97,186.62,186.59,0.03953202]
[1755745019072,0.15,186.6,186.59,0.03953202]
[1755745020271,131.82,186.62,186.59,0.03953202]
[1755745020476,0.15,186.61,186.59,0.03953202]
[1755745022273,1.62450698,186.61,186.59,0.03953202]
[1755745023275,0.15,186.6,186.59,0.03953202]
[1755745023880,131.82,186.62,186.59,2.90953202]
[1755745024177,0.15,186.61,186.59,2.90953202]
[1755745025378,131.91,186.61,186.59,2.90953202]
[1755745028980,131.76,186.61,186.59,2.90953202]
[1755745029176,131.74,186.62,186.59,2.90953202]
[1755745029377,131.89,186.62,186.59,2.90953202]
[1755745030575,131.74,186.62,186.59,2.90953202]
[1755745030878,0.15,186.61,186.59,2.90953202]
[1755745033781,131.74,186.62,186.59,2.90953202]
[1755745033986,131.89,186.62,186.59,2.90953202]
[1755745034484,0.15,186.64,186.59,1.514039]
[1755745034776,1.62450698,186.63,186.6,2.87]
[1755745034978,1.47450698,186.63,186.59,0.03953202]
[1755745035177,0.15,186.6,186.59,0.03953202]
[1755745038289,1.47450698,186.61,186.59,0.03953202]
[1755745038478,1.62450698,186.61,186.59,0.03953202]
[1755745039689,1.47450698,186.61,186.59,2.90953202]
[1755745039880,1.47450698,186.63,186.59,2.90953202]
[1755745040188,0.15,186.62,186.59,2.90953202]
[1755745041581,1.47450698,186.63,186.59,0.03953202]
[1755745041784,131.68,186.62,186.6,2.87]
[1755745042289,131.83,186.62,186.6,2.87]
[1755745043480,131.83,186.62,186.59,0.03953202]
[1755745043677,131.83,186.62,186.59,2.90953202]
[1755745045797,131.68,186.62,186.59,2.90953202]
[1755745046091,131.84,186.62,186.59,2.90953202]
[1755745046389,0.16,186.61,186.59,2.90953202]
[1755745052894,131.68,186.62,186.59,2.90953202]
[1755745053095,131.84,186.62,186.59,2.90953202]
[1755745053699,131.84,186.62,186.6,2.78]
[1755745056598,131.84,186.62,186.59,2.81953202]
[1755745058492,131.84,186.62,186.59,0.03953202]
[1755745058706,131.84,186.62,186.6,2.78]
[1755745060098,0.16,186.61,186.6,2.78]
[1755745060600,0.16,186.61,186.59,0.03953202]
[1755745060794,0.16,186.61,186.59,2.81953202]
[1755745061194,131.68,186.62,186.6,2.78]
[1755745061598,131.84,186.62,186.6,2.78]
[1755745062201,0.16,186.61,186.59,0.03953202]
[1755745062402,0.16,186.61,186.59,2.81953202]
[1755745064008,131.6,186.62,186.6,2.78]
[1755745064302,131.76,186.62,186.6,2.78]
[1755745065603,0.16,186.62,186.6,2.78]
[1755745065805,131.74,186.62,186.6,2.78]
[1755745066304,0.16,186.62,186.6,2.78]
[1755745066497,1.47450698,186.63,186.6,2.78]
[1755745066498,131.74,186.64,186.6,2.78]
[1755745066699,131.74,186.64,186.61,2.78]
[1755745066900,131.74,186.64,186.62,2.78]
[1755745068904,0.16,186.63,186.6,8.1384]
[1755745069806,0.16,186.63,186.61,2.78]
[1755745070813,133.03450698,186.65,186.61,2.78]
[1755745070814,1.63450698,186.65,186.61,2.78]
[1755745071008,0.16,186.64,186.61,2.78]
[1755745071409,133.03450698,186.65,186.61,2.78]
[1755745071609,0.16,186.63,186.61,2.78]
[1755745072008,0.16,186.62,186.6,2.78]
[1755745072409,133.03450698,186.65,186.59,6.872639]
[1755745072614,0.16,186.63,186.61,2.78]
[1755745073912,1.47450698,186.63,186.59,0.03953202]
[1755745074118,0.16,186.61,186.59,2.81953202]
[1755745074617,1.63450698,186.63,186.6,2.78]
[1755745075914,0.15,186.62,186.6,2.78]
[1755745077915,1.47450698,186.63,186.59,0.03953202]
[1755745078114,1.62450698,186.61,186.59,0.03953202]
[1755745078318,1.62450698,186.61,186.59,2.82953202]
[1755745078918,1.47450698,186.61,186.6,2.79]
[1755745083710,0.15,186.63,186.6,2.79]
[1755745083915,0.15,186.63,186.61,2.79]
[1755745084223,1.62450698,186.62,186.61,2.79]
[1755745088015,0.15,186.61,186.5,2.79]
[1755745088220,1.47450698,186.54,186.49,1.47450698]
[1755745088416,1.47450698,186.54,186.53,2.79]
[1755745089524,0.15,186.53,186.48,2.79]
[1755745089723,1.62450698,186.5,186.48,2.79]
[1755745090113,1.47450698,186.5,186.41,6.02096665]
[1755745090317,1.47450698,186.43,186.38,6.02096665]
[1755745090514,1.47450698,186.41,186.36,333.52339393]
[1755745090720,1.47450698,186.41,186.4,2.79]
[1755745091930,1.47450698,186.44,186.38,2.79]
[1755745092320,2.30834366,186.46,186.38,2.79]
[1755745092926,2.30834366,186.46,186.36,464.98339393]
[1755745092927,2.30834366,186.46,186.39,5.3644]
[1755745093126,2.30834366,186.46,186.4,2.79]
[1755745093623,2.45834366,186.44,186.41,2.79]
[1755745094830,2.30834366,186.48,186.42,2.79]
[1755745095030,2.45834366,186.49,186.42,2.79]
[1755745095727,2.45834366,186.47,186.43,2.79]
[1755745096133,0.15,186.46,186.43,2.79]
[1755745097031,2.30834366,186.49,186.42,5.3633]
[1755745097230,2.30834366,186.49,186.43,2.79]
[1755745097427,0.15,186.5,186.43,2.79]
[1755745097629,133.78834366,186.51,186.43,2.79]
[1755745098335,133.78834366,186.51,186.47,2.79]
[1755745098530,133.93834366,186.51,186.48,2.79]
[1755745098835,2.45834366,186.51,186.48,2.79]
[1755745100031,2.30834366,186.57,186.37,131.52]
[1755745100032,0.15,186.5,186.44,2.79]
[1755745100232,2.45834366,186.51,186.44,2.79]
[1755745102927,0.15,186.51,186.44,2.79]
[1755745104536,0.15,186.51,186.45,2.79]
[1755745108040,0.15,186.51,186.46,0.03458882]
[1755745108242,0.15,186.51,186.47,2.81]
[1755745108436,0.15,186.51,186.48,2.81]
[1755745109944,2.30834366,186.53,186.48,2.81]
[1755745110241,0.16,186.51,186.48,2.81]
[1755745110443,0.16,186.52,186.46,0.03458882]
[1755745110942,2.46834366,186.47,186.46,0.03458882]
[1755745112642,2.30834366,186.47,186.46,0.03458882]
[1755745113836,2.46834366,186.47,186.46,0.03458882]
[1755745117746,2.30834366,186.47,186.46,0.03458882]
[1755745117947,2.30834366,186.57,186.46,0.03458882]
[1755745118151,0.16,186.51,186.48,2.81]
[1755745118940,0.16,186.51,186.44,2.81]
[1755745119149,2.30834366,186.49,186.44,2.81]
[1755745119347,0.16,186.48,186.44,2.81]
[1755745119549,0.16,186.48,186.45,2.81]
[1755745120349,0.16,186.48,186.41,5.3638]
[1755745120552,2.30834366,186.49,186.42,2.81]
[1755745120748,2.46834366,186.49,186.42,2.81]
[1755745123056,2.30834366,186.49,186.42,2.81]
[1755745123657,0.16,186.48,186.4,2.81]
[1755745124450,0.16,186.53,186.41,2.30834366]
[1755745124655,2.46834366,186.53,186.43,2.30834366]
[1755745124951,2.46834366,186.53,186.44,8.1729]
[1755745125148,2.46834366,186.53,186.45,2.81]
[1755745128257,2.30834366,186.53,186.45,2.81]
[1755745128553,2.30834366,186.53,186.47,0.03775021]
[1755745128751,2.30834366,186.53,186.48,2.81]
[1755745129054,2.46834366,186.53,186.49,2.81]
[1755745130145,0.16,186.52,186.49,2.81]
[1755745132256,137.44822157,186.58,186.5,2.81]
[1755745132457,137.44822157,186.58,186.47,0.03775021]
[1755745132458,0.16,186.54,186.51,2.81]
[1755745133457,0.16,186.54,186.45,2.81]
[1755745134058,0.16,186.54,186.45,5.3627]
[1755745134257,0.16,186.54,186.46,2.81]
[1755745135664,0.16,186.54,186.47,2.81]
[1755745136662,0.16,186.54,186.49,0.03460787]
[1755745136861,0.16,186.54,186.51,2.78]
[1755745137967,0.15,186.52,186.49,0.03460787]
[1755745138163,2.30834366,186.53,186.49,0.03460787]
[1755745138362,2.30834366,186.53,186.5,2.78]
[1755745138563,2.45834366,186.53,186.5,2.78]
[1755745138963,0.15,186.52,186.49,0.03460787]
[1755745139965,0.15,186.51,186.49,0.03460787]
[1755745141069,0.15,186.51,186.49,2.81460787]
[1755745141773,2.30834366,186.53,186.49,0.03460787]
[1755745142274,0.15,186.54,186.51,2.78]
[1755745143574,0.15,186.53,186.49,2.81460787]
[1755745144174,0.15,186.53,186.5,2.78]
[1755745144769,2.45834366,186.55,186.49,0.03460787]
[1755745144970,2.45834366,186.55,186.52,2.78]
[1755745145770,0.15,186.54,186.52,2.78]
[1755745145971,0.15,186.54,186.5,2.78]
[1755745146376,0.15,186.54,186.51,2.78]
[1755745147078,0.15,186.53,186.49,0.03460787]
[1755745147272,0.15,186.53,186.5,2.78]
[1755745149080,0.15,186.51,186.49,0.03460787]
[1755745149275,2.45834366,186.53,186.49,2.81460787]
[1755745149494,0.15,186.52,186.49,2.81460787]
[1755745149977,0.15,186.52,186.5,2.78]
[1755745150379,2.30834366,186.53,186.5,2.78]
[1755745150676,2.30834366,186.53,186.49,0.03460787]
[1755745150882,2.30834366,186.53,186.5,2.78]
[1755745151283,2.30834366,186.53,186.51,2.78]
[1755745151784,2.45834366,186.53,186.51,2.78]
[1755745151980,0.15,186.52,186.49,2.81460787]
[1755745152277,0.15,186.52,186.49,0.03460787]
[1755745152476,0.15,186.52,186.49,2.81460787]
[1755745153073,2.30834366,186.53,186.49,0.03460787]
[1755745153281,2.45834366,186.53,186.5,2.78]
[1755745154384,2.45834366,186.53,186.49,2.81460787]
[1755745154682,2.45834366,186.53,186.5,2.78]
[1755745156383,2.30834366,186.53,186.5,2.78]
[1755745156585,0.15,186.52,186.5,2.78]
[1755745156881,2.45834366,186.57,186.5,2.78]
[1755745157081,2.30834366,186.57,186.5,2.78]
[1755745157287,133.84834366,186.58,186.52,2.78]
[1755745157584,2.45834366,186.57,186.5,2.78]
[1755745157775,2.30834366,186.52,186.47,2.78]
[1755745157975,2.30834366,186.52,186.43,4.48733932]
[1755745157976,2.30834366,186.49,186.43,2.78]
[1755745158781,2.30834366,186.51,186.43,2.78]
[1755745159185,131.44,186.52,186.43,2.78]
[1755745160188,2.30834366,186.51,186.43,2.78]
[1755745161892,131.44,186.52,186.43,2.78]
[1755745162093,131.44,186.52,186.42,2.30834366]
[1755745162094,131.44,186.52,186.46,2.78]
[1755745162290,2.45834366,186.56,186.46,2.78]
[1755745162696,2.30834366,186.54,186.46,2.78]
[1755745163495,2.30834366,186.55,186.46,2.78]
[1755745164690,2.30834366,186.55,186.46,5.3623]
[1755745164898,2.30834366,186.55,186.47,2.30834366]
[1755745165195,2.30834366,186.55,186.48,2.78]
[1755745165694,131.44,186.57,186.48,2.78]
[1755745166396,0.16,186.56,186.48,2.78]
[1755745167892,2.30834366,186.55,186.48,2.78]
[1755745168092,2.30834366,186.55,186.36,333.52339393]
[1755745168093,2.46834366,186.52,186.45,3.03]
[1755745169096,2.30834366,186.52,186.45,3.03]
[1755745169296,2.46834366,186.55,186.45,3.03]
[1755745170997,2.46834366,186.55,186.45,8.3927]
[1755745171198,2.46834366,186.55,186.46,3.03]
[1755745171398,131.44,186.57,186.47,3.03]
[1755745171598,131.44,186.57,186.47,4.48733932]
[1755745171796,131.44,186.57,186.48,3.03]
[1755745172202,131.44,186.57,186.48,8.3918]
[1755745172403,131.44,186.57,186.49,3.03]
[1755745175201,131.44,186.57,186.49,8.3914]
[1755745175403,131.44,186.57,186.5,3.03]
[1755745176997,2.30834366,186.56,186.47,7.51733932]
[1755745177194,2.30834366,186.54,186.47,3.03]
[1755745179406,133.74834366,186.57,186.47,3.03]
[1755745179707,133.74834366,186.57,186.47,7.51733932]
[1755745180000,133.74834366,186.57,186.48,3.03]
[1755745180207,133.74834366,186.57,186.48,8.3917]
[1755745180506,133.90834366,186.57,186.49,3.03]
[1755745181906,133.90834366,186.57,186.45,6.02096665]
[1755745181907,2.30834366,186.55,186.46,7.51733932]
[1755745182105,0.16,186.54,186.46,3.03]
[1755745183411,0.16,186.54,186.46,7.51733932]
[1755745184008,131.44,186.57,186.47,3.03]
[1755745184409,131.44,186.57,186.48,5.3618]
[1755745184611,131.44,186.57,186.49,3.03]
[1755745185511,0.16,186.56,186.49,3.03]
[1755745189122,2.46834366,186.56,186.49,3.03]
[1755745190922,2.30834366,186.56,186.49,3.03]
[1755745191122,131.44,186.57,186.49,3.03]
[1755745193816,131.44,186.57,186.49,8.3915]
[1755745194025,131.44,186.57,186.49,3.03]
[1755745194626,0.17,186.56,186.49,3.03]
[1755745196029,131.44,186.57,186.49,3.03]
[1755745196234,131.6,186.57,186.49,3.03]
[1755745196734,131.6,186.57,186.5,2.87]
[1755745198337,131.6,186.57,186.5,8.2311]
[1755745199441,131.6,186.57,186.5,2.87]
[1755745200333,0.16,186.56,186.5,2.87]
[1755745201135,0.16,186.54,186.47,2.87]
[1755745201338,2.46834366,186.52,186.44,7.35733932]
[1755745201541,2.46834366,186.52,186.44,2.87]
[1755745202240,2.30834366,186.52,186.44,2.87]
[1755745202434,2.30834366,186.52,186.44,8.2328]
[1755745202635,2.30834366,186.52,186.45,2.87]
[1755745202835,2.46834366,186.52,186.45,2.87]
[1755745203038,0.16,186.51,186.42,4.48733932]
[1755745203243,131.36,186.54,186.42,7.35733932]
[1755745203244,0.16,186.49,186.42,7.35733932]
[1755745203631,0.16,186.49,186.42,2.87]
[1755745204040,2.30834366,186.48,186.39,7.35733932]
[1755745204236,0.16,186.47,186.39,2.87]
[1755745204437,2.30834366,186.46,186.39,2.87]
[1755745204639,0.16,186.45,186.39,2.87]
[1755745205445,0.16,186.5,186.39,2.87]
[1755745205645,2.30834366,186.48,186.39,4.48733932]
[1755745205941,5.90822157,186.53,186.38,2.87]
[1755745205942,2.30834366,186.46,186.38,2.87]
[1755745206740,0.16,186.47,186.39,2.87]
[1755745206940,0.16,186.51,186.44,2.87]
[1755745207838,2.30834366,186.54,186.45,2.87]
[1755745208345,131.54,186.55,186.48,2.87]
[1755745209338,131.38,186.55,186.49,2.87]
[1755745209540,2.30834366,186.58,186.49,2.87]
[1755745209740,2.30834366,186.58,186.5,5.3612]
[1755745210935,2.46834366,186.58,186.49,8.2315]
[1755745211644,2.30834366,186.6,186.51,2.87]
[1755745211847,2.30834366,186.61,186.51,2.87]
[1755745212343,2.30834366,186.61,186.52,5.3605]
[1755745213145,2.30834366,186.61,186.53,2.87]
[1755745213441,2.30834366,186.61,186.53,8.2304]
[1755745213647,492.02,186.62,186.52,2.30834366]
[1755745213648,131.44,186.62,186.55,2.87]
[1755745213847,2.30834366,186.65,186.56,2.30834366]
[1755745214048,0.16,186.66,186.57,10.53734366]
[1755745214244,0.16,186.66,186.5,8.93583988]
[1755745214245,0.16,186.66,186.58,2.87]
[1755745214438,0.16,186.66,186.58,5.17834366]
[1755745214643,0.16,186.66,186.58,2.87]
[1755745214840,2.46834366,186.66,186.58,2.87]
[1755745215240,0.16,186.66,186.58,2.87]
[1755745217746,131.44,186.68,186.61,2.87]
[1755745218353,131.6,186.68,186.61,2.87]
[1755745218648,133.90834366,186.68,186.58,5.17834366]
[1755745222165,133.90834366,186.68,186.59,2.87]
[1755745222365,131.6,186.68,186.59,2.87]
[1755745223167,0.16,186.67,186.59,2.87]
[1755745224970,2.30834366,186.66,186.59,2.87]
[1755745225167,0.16,186.67,186.59,2.87]
[1755745232270,131.44,186.68,186.61,5.24834366]
[1755745232576,360.4,186.72,186.65,2.94]
[1755745232977,131.82,186.74,186.65,2.94]
[1755745233474,131.82,186.74,186.65,5.3569]
[1755745233677,131.82,186.74,186.66,2.94]
[1755745234779,131.66,186.74,186.68,2.94]
[1755745236675,0.16,186.73,186.65,2.94]
[1755745238076,131.66,186.74,186.57,2.30834366]
[1755745238077,0.16,186.71,186.61,2.94]
[1755745238283,0.16,186.68,186.61,2.94]
[1755745240181,2.30834366,186.67,186.61,2.94]
[1755745241676,2.30834366,186.69,186.61,2.94]
[1755745241881,2.30834366,186.72,186.61,2.94]
[1755745242379,2.30834366,186.72,186.62,2.94]
[1755745242581,132.5924509,186.74,186.62,2.94]
[1755745242582,2.30834366,186.7,186.62,2.94]
[1755745243082,2.30834366,186.69,186.62,2.94]
[1755745244080,0.16,186.71,186.62,2.94]
[1755745244275,132.5924509,186.74,186.62,2.94]
[1755745244276,2.30834366,186.73,186.62,2.94]
[1755745244481,2.30834366,186.73,186.63,5.3573]
[1755745244680,2.30834366,186.73,186.64,2.94]
[1755745244882,131.66,186.74,186.64,2.94]
[1755745245081,2.30834366,186.73,186.64,2.94]
[1755745245278,2.30834366,186.73,186.65,2.94]
[1755745245984,2.30834366,186.73,186.66,2.94]
[1755745246284,131.66,186.74,186.66,2.94]
[1755745246680,131.66,186.74,186.66,5.3565]
[1755745246878,131.66,186.74,186.67,2.94]
[1755745247186,131.66,186.74,186.67,8.2964]
[1755745248386,131.66,186.74,186.68,2.94]
[1755745249088,2.46834366,186.78,186.68,2.94]
[1755745249386,2.46834366,186.78,186.69,5.3556]
[1755745249583,2.46834366,186.78,186.7,2.94]
[1755745250186,2.46834366,186.78,186.71,2.94]
[1755745250380,131.68,186.8,186.71,2.94]
[1755745250584,131.68,186.8,186.74,2.94]
[1755745251184,0.16,186.86,186.74,5.24834366]
[1755745251388,0.16,186.85,186.74,5.24834366]
[1755745251588,2.30834366,186.84,186.74,5.24834366]
[1755745251789,0.16,186.83,186.74,5.24834366]
[1755745252087,0.16,186.83,186.75,2.94]
[1755745252295,2.30834366,186.82,186.75,2.94]
[1755745254587,0.16,186.85,186.75,2.94]
[1755745254791,2.30834366,186.84,186.75,2.94]
[1755745254991,0.16,186.85,186.75,2.94]
[1755745255384,2.30834366,186.84,186.75,2.94]
[1755745255893,0.16,186.8,186.69,2.76]
[1755745256094,0.16,186.8,186.69,5.06834366]
[1755745256288,0.16,186.8,186.7,2.76]
[1755745256782,0.16,186.8,186.71,5.3553]
[1755745256990,0.16,186.8,186.72,2.76]
[1755745257587,2.46834366,186.76,186.66,2.76]
[1755745257989,2.46834366,186.76,186.67,5.06834366]
[1755745258192,2.46834366,186.76,186.68,2.76]
[1755745258791,0.16,186.76,186.68,2.76]
[1755745258991,2.46834366,186.76,186.68,2.76]
[1755745260497,0.16,186.81,186.71,2.30834366]
[1755745260798,2.46834366,186.81,186.72,2.76]
[1755745260999,2.46834366,186.84,186.74,2.76]
[1755745261299,0.16,186.84,186.75,2.76]
[1755745261491,2.46834366,186.84,186.75,8.1141]
[1755745262486,0.16,186.84,186.75,8.1141]
[1755745263992,2.30834366,186.85,186.77,2.76]
[1755745264397,131.74,186.86,186.77,2.76]
[1755745264786,232.69753012,186.97,186.83,2.76]
[1755745264987,5.90822157,187.0,186.91,2.30834366]
[1755745265187,0.16,187.01,186.77,4.48227808]
[1755745265188,2.46834366,187.01,186.89,2.76]
[1755745265389,2.46834366,186.98,186.89,2.76]
[1755745266097,2.30834366,186.95,186.86,5.06834366]
[1755745266397,0.16,186.97,186.86,2.76]
[1755745266601,0.16,186.97,186.86,3.74154985]
[1755745266799,0.16,186.97,186.87,2.76]
[1755745267193,0.16,187.01,186.91,2.76]
[1755745269295,0.16,187.05,186.93,2.76]
[1755745270200,0.16,187.05,186.93,8.1089]
[1755745270393,0.16,187.05,186.94,2.76]
[1755745275295,0.16,187.05,186.94,8.1084]
[1755745275503,3.90154985,187.05,186.94,2.76]
[1755745276800,3.74154985,187.05,186.94,2.76]
[1755745277016,0.16,187.04,186.94,2.76]
[1755745280212,0.16,187.04,186.94,8.1086]
[1755745280706,3.74154985,187.05,186.96,5.3479]
[1755745281014,0.16,187.07,186.96,2.76]
[1755745281404,0.16,187.1,186.96,2.76]
[1755745281811,0.16,187.1,187.0,5.3469]
[1755745282109,0.16,187.1,187.01,2.76]
[1755745282310,3.90154985,187.1,187.01,2.76]
[1755745284405,0.16,187.1,187.01,2.76]
[1755745285610,132.82,187.12,187.01,3.74154985]
[1755745285815,132.82,187.12,187.02,2.76]
[1755745286215,132.82,187.12,187.05,2.98]
[1755745289513,0.15,187.14,187.05,2.98]
[1755745290913,0.15,187.11,186.95,2.98]
[1755745291117,0.15,187.11,187.0,2.98]
[1755745292822,0.15,187.11,187.01,2.98]
[1755745294629,0.15,187.11,187.01,8.3266]
[1755745295324,363.78479734,187.15,187.01,3.73479734]
[1755745295521,363.78479734,187.15,187.02,2.98]
[1755745295728,363.78479734,187.15,187.06,5.3452]
[1755745295932,360.05,187.15,187.07,2.98]
[1755745296630,3.73479734,187.14,187.07,2.98]
[1755745296830,0.15,187.13,187.04,2.98]
[1755745298733,359.9,187.15,186.97,2.98]
[1755745298734,0.15,187.1,186.97,2.98]
[1755745299037,0.15,187.1,186.97,5.3476]
[1755745299237,0.15,187.1,186.98,2.98]
[1755745300233,0.15,187.1,186.98,8.3275]
[1755745300431,0.15,187.1,186.99,2.98]
[1755745301928,3.88479734,187.1,186.99,2.98]
[1755745302130,3.88479734,187.1,187.03,0.03377744]
[1755745305637,132.76,187.11,187.04,2.98]
[1755745306331,5.90822157,187.17,187.04,2.98]
[1755745306537,9.79301891,187.23,187.09,2.98]
[1755745306732,133.36,187.22,187.12,5.3433]
[1755745306937,133.36,187.22,187.13,2.98]
[1755745307130,133.36,187.22,187.14,0.03420832]
[1755745308040,0.15,187.21,187.14,0.03420832]
[1755745310342,0.15,187.17,187.14,0.03420832]
[1755745310643,2.29071274,187.18,187.14,0.03420832]
[1755745311031,0.15,187.18,187.14,3.01420832]
[1755745311435,0.03400692,187.19,187.14,0.03420832]
[1755745311635,0.03400692,187.19,187.17,2.98]
[1755745311940,0.03400692,187.19,187.18,2.98]
[1755745319341,0.03400692,187.19,187.14,0.03420832]
[1755745319536,0.03400692,187.19,187.16,2.85]
[1755745319740,0.03400692,187.19,187.18,2.85]
[1755745320542,0.03400692,187.19,187.14,0.03420832]
[1755745320949,0.14,187.17,187.14,0.03420832]
[1755745321143,0.17400692,187.19,187.14,2.88420832]